bitfinex/quotes_BTCUSD_20250604
["timestamp","ask_amount","ask_price","bid_price","bid_amount"]
[1749013927103,1.40033399,105410.0,105400.0,0.90356]
[1749013927323,1.39126604,105410.0,105400.0,0.90356]
[1749013927542,1.40898585,105410.0,105400.0,0.90356]
[1749013927806,1.39126604,105410.0,105400.0,0.90356]
[1749013929506,1.36687202,105410.0,105400.0,0.90344]
[1749013929952,0.37054085,105400.0,105380.0,0.0308]
[1749013930161,0.96069043,105400.0,105390.0,0.60984]
[1749013930372,0.96069041,105400.0,105390.0,0.60984]
[1749013930638,0.96069045,105400.0,105390.0,0.60984]
[1749013930846,0.96069048,105400.0,105390.0,0.60984]
[1749013931276,0.94297125,105400.0,105390.0,0.90352]
[1749013931494,1.33848785,105400.0,105390.0,0.90352]
[1749013931719,1.35620708,105400.0,105390.0,0.90352]
[1749013931904,1.33848785,105400.0,105390.0,0.90352]
[1749013932360,1.27302835,105400.0,105390.0,0.90352]
[1749013932582,1.3384573,105400.0,105390.0,0.90352]
[1749013932769,1.3068573,105400.0,105390.0,0.90352]
[1749013934498,1.3068573,105400.0,105390.0,0.90328]
[1749013934946,1.3245766,105400.0,105390.0,0.5188]
[1749013935168,1.3220573,105400.0,105390.0,0.9032]
[1749013935833,1.32457661,105400.0,105390.0,0.9032]
[1749013936474,1.30684028,105400.0,105390.0,0.9032]
[1749013937426,1.38684028,105400.0,105390.0,0.9032]
[1749013937642,0.51580708,105400.0,105390.0,0.9032]
[1749013937868,1.32455945,105400.0,105390.0,0.9032]
[1749013938094,1.30684028,105400.0,105390.0,0.9032]
[1749013938569,1.32455945,105400.0,105390.0,0.9032]
[1749013938794,1.30684028,105400.0,105390.0,0.9032]
[1749013939949,1.32455944,105400.0,105390.0,0.9032]
[1749013940192,1.30684028,105400.0,105390.0,0.9032]
[1749013940430,1.32455049,105400.0,105390.0,0.9032]
[1749013940669,1.30683133,105400.0,105390.0,0.9032]
[1749013941185,1.32455049,105400.0,105390.0,0.9032]
[1749013941415,1.30683133,105400.0,105390.0,0.9032]
[1749013942335,1.32455049,105400.0,105390.0,0.9032]
[1749013942555,1.3245505,105400.0,105390.0,0.9032]
[1749013942781,1.30683133,105400.0,105390.0,0.9032]
[1749013944410,1.32455051,105400.0,105390.0,0.9032]
[1749013944625,1.30683133,105400.0,105390.0,0.9032]
[1749013944833,1.32455051,105400.0,105390.0,0.9032]
[1749013945043,1.30683133,105400.0,105390.0,0.9032]
[1749013945250,1.24142835,105400.0,105390.0,0.9032]
[1749013945927,0.45039515,105400.0,105390.0,0.9342]
[1749013946141,0.3955166,105400.0,105390.0,0.9342]
[1749013946351,0.43095764,105400.0,105390.0,0.9342]
[1749013946563,0.41323739,105400.0,105390.0,0.9342]
[1749013948995,0.80875399,105400.0,105390.0,0.93324]
[1749013950350,0.10339326,105400.0,105390.0,0.81144]
[1749013950569,0.35772079,105400.0,105390.0,0.61684]
[1749013950793,1.14875399,105400.0,105390.0,0.92364]
[1749013951040,0.43766504,105400.0,105390.0,0.61684]
[1749013951266,1.24641715,105400.0,105390.0,0.92396]
[1749013951493,1.31001169,105400.0,105390.0,0.92396]
[1749013951725,1.3277306,105400.0,105390.0,0.92396]
[1749013951933,1.31001169,105400.0,105390.0,0.92396]
[1749013952146,1.31200579,105400.0,105390.0,0.92396]
[1749013952357,1.33172474,105400.0,105390.0,0.92396]
[1749013952569,1.33172471,105400.0,105390.0,0.92396]
[1749013952781,1.31400579,105400.0,105390.0,0.92396]
[1749013953427,0.91886071,105400.0,105390.0,0.92396]
[1749013954089,0.54069477,105400.0,105390.0,0.92396]
[1749013954318,0.52297259,105400.0,105390.0,0.92396]
[1749013954528,0.9365829,105400.0,105390.0,0.92396]
[1749013954747,0.91886071,105400.0,105390.0,0.92396]
[1749013955186,0.93658299,105400.0,105390.0,0.92396]
[1749013955398,0.91886071,105400.0,105390.0,0.92396]
[1749013955612,0.93658299,105400.0,105390.0,0.92396]
[1749013956035,0.95430965,105400.0,105390.0,0.92396]
[1749013956309,0.93658737,105400.0,105390.0,0.92396]
[1749013956512,0.95430965,105400.0,105390.0,0.92396]
[1749013956727,0.97203193,105400.0,105390.0,0.92396]
[1749013956940,0.95430965,105400.0,105390.0,0.92396]
[1749013957810,1.03430965,105400.0,105390.0,0.92396]
[1749013958437,1.03430965,105400.0,105390.0,0.61684]
[1749013958681,1.46149777,105400.0,105390.0,0.9232]
[1749013959526,1.46149777,105400.0,105390.0,0.92308]
[1749013959947,1.46149828,105400.0,105390.0,0.92308]
[1749013960175,1.46149828,105400.0,105390.0,0.92296]
[1749013960819,0.65422204,105400.0,105390.0,0.92296]
[1749013961037,1.44599828,105400.0,105390.0,0.92284]
[1749013961261,1.03431016,105400.0,105390.0,0.92288]
[1749013961504,1.0520327,105400.0,105390.0,0.92288]
[1749013961726,0.98663031,105400.0,105390.0,0.92288]
[1749013961941,0.98663031,105400.0,105390.0,0.5188]
[1749013962160,1.06975797,105400.0,105390.0,0.923]
[1749013962366,1.05203528,105400.0,105390.0,0.5188]
[1749013962603,1.06975796,105400.0,105390.0,0.92296]
[1749013962863,1.05203528,105400.0,105390.0,0.92296]
[1749013963496,1.05203528,105400.0,105390.0,0.5188]
[1749013963705,1.06657613,105400.0,105390.0,0.92276]
[1749013963930,1.06658466,105400.0,105390.0,0.92276]
[1749013965437,1.06658466,105400.0,105390.0,0.92248]
[1749013965651,1.08430771,105400.0,105390.0,0.92248]
[1749013966082,1.10203076,105400.0,105390.0,0.92248]
[1749013966295,1.08430771,105400.0,105390.0,0.92248]
[1749013966734,1.10203184,105400.0,105390.0,0.92248]
[1749013966944,0.68841959,105400.0,105390.0,0.92248]
[1749013967165,1.08430771,105400.0,105390.0,0.92248]
[1749013967601,1.10203526,105400.0,105390.0,0.92248]
[1749013967818,1.08430771,105400.0,105390.0,0.92248]
[1749013969119,0.68841959,105400.0,105390.0,0.92248]
[1749013969388,1.08430771,105400.0,105390.0,0.92248]
[1749013969607,1.11976377,105400.0,105390.0,0.92248]
[1749013971309,1.13749182,105400.0,105390.0,0.92248]
[1749013971528,1.11976377,105400.0,105390.0,0.92248]
[1749013971971,1.11981078,105400.0,105390.0,0.92248]
[1749013972189,0.79753939,105400.0,105390.0,0.93858]
[1749013972406,0.77981078,105400.0,105390.0,0.63294]
[1749013972619,0.7975394,105400.0,105390.0,0.93874]
[1749013972827,0.77981078,105400.0,105390.0,0.93874]
[1749013973248,0.7975394,105400.0,105390.0,0.93874]
[1749013973460,0.81526802,105400.0,105390.0,0.93874]
[1749013973673,0.79754151,105400.0,105390.0,0.95404]
[1749013973881,0.73527012,105400.0,105390.0,0.95404]
[1749013974116,0.71754151,105400.0,105390.0,0.95404]
[1749013975168,0.73527012,105400.0,105390.0,0.95404]
[1749013975385,1.11332807,105400.0,105390.0,0.95404]
[1749013975593,1.13105669,105400.0,105390.0,0.95404]
[1749013975829,1.13105668,105400.0,105390.0,0.95404]
[1749013976036,1.11333054,105400.0,105390.0,0.95404]
[1749013976455,1.13105916,105400.0,105390.0,0.95404]
[1749013976969,0.32165586,105400.0,105390.0,0.95404]
[1749013977182,1.13105915,105400.0,105390.0,0.95404]
[1749013977401,1.11333054,105400.0,105390.0,0.95404]
[1749013977828,1.13105915,105400.0,105390.0,0.95404]
[1749013978250,1.1165183,105400.0,105390.0,0.95404]
[1749013978672,1.0333246,105400.0,105390.0,0.95404]
[1749013978880,1.05105381,105400.0,105390.0,0.95404]
[1749013979093,1.0333246,105400.0,105390.0,0.95404]
[1749013981220,1.05105446,105400.0,105390.0,0.95404]
[1749013981465,1.05105487,105400.0,105390.0,0.95404]
[1749013981683,1.05105506,105400.0,105390.0,0.95404]
[1749013981899,1.0333246,105400.0,105390.0,0.9534]
[1749013983150,1.05105852,105400.0,105390.0,0.9534]
[1749013983366,1.0333246,105400.0,105390.0,0.9534]
[1749013984203,1.05105851,105400.0,105390.0,0.9534]
[1749013984522,1.0333246,105400.0,105390.0,0.9534]
[1749013985750,1.05105851,105400.0,105390.0,0.9534]
[1749013985956,1.0333246,105400.0,105390.0,0.9534]
[1749013987308,1.05105851,105400.0,105390.0,0.9534]
[1749013987519,1.0333246,105400.0,105390.0,0.9534]
[1749013988163,0.24164992,105400.0,105390.0,0.9534]
[1749013988383,1.0333246,105400.0,105390.0,0.9534]
[1749013990593,1.05105851,105400.0,105390.0,0.9534]
[1749013990767,0.24164992,105400.0,105390.0,0.9534]
[1749013990970,1.05105845,105400.0,105390.0,0.9534]
[1749013991165,1.05105921,105400.0,105390.0,0.9534]
[1749013991398,1.05105926,105400.0,105390.0,0.9534]
[1749013991595,1.0333246,105400.0,105390.0,0.9534]
[1749013992412,0.14579562,105400.0,105390.0,0.9534]
[1749013992933,0.14579562,105400.0,105390.0,1.34923734]
[1749013993579,0.14579562,105400.0,105390.0,0.9534]
[1749013993998,0.14579562,105400.0,105390.0,1.34923734]
[1749013995352,0.14579562,105400.0,105390.0,0.9534]
[1749013997907,0.14579562,105400.0,105390.0,1.0492543]
[1749013999359,0.14579562,105400.0,105390.0,0.7440943]
[1749013999565,0.14579562,105400.0,105390.0,1.0483743]
[1749014002404,0.14579562,105400.0,105390.0,0.95252]
[1749014002622,0.14579562,105400.0,105390.0,0.5502]
[1749014002843,0.14579562,105400.0,105390.0,0.95176]
[1749014008580,0.14579562,105400.0,105390.0,1.0476143]
[1749014014286,0.14579562,105400.0,105390.0,0.6460543]
[1749014014464,0.14579562,105400.0,105390.0,1.0460143]
[1749014020400,0.54145023,105400.0,105390.0,0.5502]
[1749014020615,0.93710484,105400.0,105390.0,0.91888]
[1749014020828,0.54145023,105400.0,105390.0,0.91888]
[1749014022200,0.54145023,105400.0,105390.0,0.5188]
[1749014022409,0.54145023,105400.0,105390.0,0.91872]
[1749014023339,0.54153405,105400.0,105390.0,0.91872]
[1749014023789,0.14579562,105400.0,105390.0,0.95122]
[1749014031423,0.54153405,105400.0,105390.0,0.91872]
[1749014031639,0.14579562,105400.0,105390.0,0.91872]
[1749014032277,0.14579562,105400.0,105390.0,0.93462]
[1749014032495,0.14579562,105400.0,105390.0,0.95022]
[1749014033213,0.14579562,105400.0,105390.0,0.91872]
[1749014033856,0.14579562,105400.0,105390.0,0.93492]
[1749014036555,0.14579562,105400.0,105390.0,0.94992]
[1749014041404,0.14579562,105400.0,105390.0,0.55]
[1749014041917,0.14579562,105400.0,105390.0,0.9506]
[1749014044072,0.14579562,105400.0,105390.0,0.95068]
[1749014045312,0.54150137,105400.0,105390.0,0.95068]
[1749014046476,0.14579562,105400.0,105390.0,0.95068]
[1749014049967,0.14579562,105400.0,105390.0,1.44224005]
[1749014050847,0.14379562,105400.0,105390.0,1.44224005]
[1749014051516,0.14179562,105400.0,105390.0,1.0465343]
[1749014051729,0.14179562,105400.0,105390.0,1.44224005]
[1749014052411,0.14179562,105400.0,105390.0,1.84224005]
[1749014054696,0.14179562,105400.0,105390.0,2.32874005]
[1749014056135,0.14179562,105400.0,105390.0,1.2600343]
[1749014056766,0.14179562,105400.0,105390.0,1.0142743]
[1749014057780,0.14179562,105400.0,105390.0,1.40998005]
[1749014058428,0.14179562,105400.0,105390.0,1.0142743]
[1749014058638,0.14179562,105400.0,105390.0,1.31322005]
[1749014060113,0.14179562,105400.0,105390.0,1.92866005]
[1749014061270,0.14179562,105400.0,105390.0,1.62470005]
[1749014061515,0.14179562,105400.0,105390.0,2.26970005]
[1749014067186,0.14179562,105400.0,105390.0,1.99670005]
[1749014068540,0.14179562,105400.0,105390.0,1.6019943]
[1749014068771,0.14179562,105400.0,105390.0,1.99770005]
[1749014069400,0.14179562,105400.0,105390.0,2.05718005]
[1749014069843,0.14179562,105400.0,105390.0,1.6614743]
[1749014070074,0.14179562,105400.0,105390.0,2.67262005]
[1749014072579,0.14179562,105400.0,105390.0,3.0953258]
[1749014072791,0.14179562,105400.0,105390.0,3.14016793]
[1749014073009,0.14179562,105400.0,105390.0,2.86418665]
[1749014073438,0.14179562,105400.0,105390.0,2.86218665]
[1749014073666,0.14279562,105400.0,105390.0,2.07277515]
[1749014073873,0.14279562,105400.0,105390.0,2.86418665]
[1749014074086,0.14279562,105400.0,105390.0,2.86618665]
[1749014074936,0.14279562,105400.0,105390.0,2.76942665]
[1749014076244,0.14279562,105400.0,105390.0,2.79966053]
[1749014080023,0.14279562,105400.0,105390.0,3.41546053]
[1749014081100,0.10735106,105400.0,105390.0,3.41546053]
[1749014083560,0.10735106,105400.0,105390.0,3.19250053]
[1749014085057,0.10735106,105400.0,105390.0,2.94494053]
[1749014085529,0.10735106,105400.0,105390.0,2.84774053]
[1749014089352,0.10735106,105400.0,105390.0,2.81750665]
[1749014089814,0.10735106,105400.0,105390.0,2.8029658]
[1749014090104,0.10735106,105400.0,105390.0,3.43326665]
[1749014090539,0.10735106,105400.0,105390.0,4.0337424]
[1749014090752,0.10735106,105400.0,105390.0,3.94099665]
[1749014091177,0.03644941,105400.0,105390.0,3.94099665]
[1749014092093,0.021632,105400.0,105390.0,3.94099665]
[1749014092514,0.021632,105400.0,105390.0,3.66807665]
[1749014092723,0.021632,105400.0,105390.0,3.42243665]
[1749014093329,0.021632,105400.0,105390.0,3.36311325]
[1749014097283,0.00528808,105400.0,105390.0,3.36311325]
[1749014098580,0.01294953,105410.0,105400.0,1.27457]
[1749014098808,0.01294953,105410.0,105400.0,3.09377783]
[1749014099313,0.01294953,105410.0,105400.0,3.49377783]
[1749014099982,0.01294953,105410.0,105400.0,4.11245783]
[1749014100408,0.01294953,105410.0,105400.0,4.11645783]
[1749014100632,0.01294953,105410.0,105400.0,4.05103883]
[1749014101326,0.01294953,105410.0,105400.0,4.04803883]
[1749014101515,0.01294953,105410.0,105400.0,3.65233308]
[1749014101771,0.01394953,105410.0,105400.0,4.05303883]
[1749014103400,0.01394953,105410.0,105400.0,3.53451883]
[1749014103857,0.0177366,105420.0,105410.0,1.22755235]
[1749014104110,0.0177366,105420.0,105410.0,1.32340665]
[1749014104344,0.0177366,105420.0,105410.0,1.80990665]
[1749014104792,0.0177366,105420.0,105410.0,2.20990665]
[1749014105232,0.0177366,105420.0,105410.0,2.21290665]
[1749014105470,0.0177366,105420.0,105410.0,2.21590665]
[1749014106216,0.0177366,105420.0,105410.0,2.26590665]
[1749014106439,0.005,105430.0,105420.0,0.69]
[1749014106656,0.005,105430.0,105420.0,2.33607068]
[1749014106872,0.005,105430.0,105420.0,1.94036493]
[1749014107108,0.005,105430.0,105420.0,2.34036493]
[1749014107991,0.005,105430.0,105420.0,2.36841814]
[1749014108235,0.005,105430.0,105420.0,2.37041814]
[1749014108884,0.005,105430.0,105420.0,2.37141814]
[1749014109401,0.005,105430.0,105420.0,2.87767901]
[1749014109857,0.005,105430.0,105420.0,2.08626751]
[1749014110091,0.005,105430.0,105420.0,3.49147901]
[1749014110828,0.005,105430.0,105420.0,3.52169406]
[1749014113302,0.005,105430.0,105420.0,3.24881406]
[1749014114132,0.005,105430.0,105420.0,2.70205406]
[1749014114413,0.005,105430.0,105420.0,3.00273406]
[1749014117811,0.005,105430.0,105420.0,2.21132256]
[1749014118015,0.005,105430.0,105420.0,3.00273406]
[1749014118234,0.005,105430.0,105420.0,2.90741406]
[1749014118449,0.005,105430.0,105420.0,2.60673406]
[1749014118676,0.005,105430.0,105420.0,2.11744256]
[1749014118891,0.005,105430.0,105420.0,2.90885406]
[1749014119977,0.005,105430.0,105420.0,3.52257406]
[1749014122381,0.005,105430.0,105420.0,3.24973406]
[1749014123055,0.005,105430.0,105420.0,3.21951901]
[1749014124271,0.005,105430.0,105420.0,2.87863901]
[1749014128781,0.005,105430.0,105420.0,2.91651561]
[1749014129980,0.005,105430.0,105420.0,3.53023561]
[1749014132243,0.005,105430.0,105420.0,3.25739561]
[1749014133662,0.005,105430.0,105420.0,2.85995561]
[1749014133874,0.005,105430.0,105420.0,3.25575561]
[1749014135651,0.005,105430.0,105420.0,2.91487561]
[1749014139944,0.005,105430.0,105420.0,3.52791561]
[1749014140126,0.00132885,105430.0,105420.0,3.52791561]
[1749014145833,0.00132885,105430.0,105420.0,3.00951561]
[1749014146432,0.00132885,105430.0,105420.0,2.91487561]
[1749014147712,0.00132885,105430.0,105420.0,3.31058136]
[1749014150021,0.00035508,105430.0,105420.0,3.92362136]
[1749014150898,0.00035508,105430.0,105420.0,3.52791561]
[1749014151801,0.00035508,105430.0,105420.0,3.25507561]
[1749014153655,0.00035508,105430.0,105420.0,3.00951561]
[1749014153880,0.00035508,105430.0,105420.0,2.91487561]
[1749014156540,0.00035508,105430.0,105420.0,4.44833661]
[1749014157051,0.00035508,105430.0,105420.0,3.55101161]
[1749014157722,0.00035508,105430.0,105420.0,3.94671736]
[1749014157946,0.0312,105450.0,105440.0,0.64]
[1749014158173,0.03129131,105450.0,105440.0,2.04406971]
[1749014159093,0.03129131,105450.0,105440.0,1.25265821]
[1749014159309,0.03129131,105450.0,105440.0,2.04606971]
[1749014159999,0.03129131,105450.0,105440.0,2.65910971]
[1749014161941,0.03129131,105450.0,105440.0,1.99056396]
[1749014162174,0.03129131,105450.0,105440.0,2.68844396]
[1749014162613,0.03129131,105450.0,105440.0,2.69800774]
[1749014163277,0.03129131,105450.0,105440.0,2.29800774]
[1749014165907,0.03129131,105450.0,105440.0,1.95780774]
[1749014166478,0.03129131,105450.0,105440.0,2.35351349]
[1749014167778,0.03129131,105450.0,105440.0,1.95780774]
[1749014170044,0.03129131,105450.0,105440.0,2.56948774]
[1749014172460,0.03129131,105450.0,105440.0,2.29664774]
[1749014173604,0.03129131,105450.0,105440.0,2.05044774]
[1749014174059,0.01569131,105450.0,105440.0,1.95712774]
[1749014174288,0.01569131,105450.0,105440.0,2.35712774]
[1749014174987,0.01569131,105450.0,105440.0,2.75283349]
[1749014175660,9.131e-05,105450.0,105440.0,2.76833349]
[1749014177798,9.131e-05,105450.0,105440.0,2.36833349]
[1749014180113,9.131e-05,105450.0,105440.0,2.97997349]
[1749014182553,9.131e-05,105450.0,105440.0,2.70717349]
[1749014182768,9.131e-05,105450.0,105440.0,1.91536199]
[1749014182986,0.01579131,105450.0,105440.0,1.89986199]
[1749014183202,0.01579131,105450.0,105440.0,2.29556774]
[1749014183646,0.01579131,105450.0,105440.0,1.60306199]
[1749014183872,0.01579131,105450.0,105440.0,2.29760774]
[1749014184720,0.01579131,105450.0,105440.0,1.90190199]
[1749014184932,0.01579131,105450.0,105440.0,2.29760774]
[1749014185147,0.01579131,105450.0,105440.0,2.69760774]
[1749014185765,0.01579131,105450.0,105440.0,2.45208774]
[1749014185982,0.01579131,105450.0,105440.0,2.84779349]
[1749014187627,0.01579131,105450.0,105440.0,2.75447349]
[1749014189829,0.01579131,105450.0,105440.0,1.26422199]
[1749014190041,0.03139131,105450.0,105440.0,1.87586199]
[1749014190254,0.03139131,105450.0,105440.0,1.87311808]
[1749014190466,0.03139131,105450.0,105440.0,2.26882383]
[1749014191778,0.42709706,105450.0,105440.0,0.93391808]
[1749014191991,0.42709706,105450.0,105440.0,0.6776743]
[1749014192194,0.42709706,105450.0,105440.0,0.9779143]
[1749014192834,0.03139131,105450.0,105440.0,0.9779143]
[1749014193040,0.42709706,105450.0,105440.0,0.9779143]
[1749014194092,0.42709706,105450.0,105440.0,0.4885]
[1749014194300,0.42709706,105450.0,105440.0,0.3956]
[1749014195757,0.42709706,105450.0,105440.0,0.09532]
[1749014195965,0.42709706,105450.0,105440.0,0.39544]
[1749014196392,0.03139131,105450.0,105440.0,0.39544]
[1749014196599,0.42709706,105450.0,105440.0,0.39544]
[1749014197224,0.42709706,105450.0,105440.0,0.002]
[1749014197435,0.42709706,105450.0,105440.0,0.39536]
[1749014199124,0.03139131,105450.0,105440.0,0.88692005]
[1749014199488,0.03139131,105450.0,105440.0,0.4912143]
[1749014199937,0.01579131,105450.0,105440.0,1.0096143]
[1749014200341,0.01579131,105450.0,105440.0,1.74532005]
[1749014200516,9.131e-05,105450.0,105440.0,1.76092005]
[1749014203276,9.131e-05,105450.0,105440.0,2.3856858]
[1749014203460,9.131e-05,105450.0,105440.0,1.6536258]
[1749014205295,9.131e-05,105450.0,105440.0,1.25734119]
[1749014206732,9.131e-05,105450.0,105440.0,0.86398119]
[1749014206943,9.131e-05,105450.0,105440.0,1.16354119]
[1749014208640,9.131e-05,105450.0,105440.0,1.65004119]
[1749014209287,9.131e-05,105450.0,105440.0,1.2549143]
[1749014209513,9.131e-05,105450.0,105440.0,1.65004119]
[1749014209963,9.131e-05,105450.0,105440.0,2.26304119]
[1749014212703,9.131e-05,105450.0,105440.0,1.69064119]
[1749014212916,9.131e-05,105450.0,105440.0,1.98984119]
[1749014216788,9.131e-05,105450.0,105440.0,1.64968119]
[1749014219314,9.131e-05,105450.0,105440.0,1.33508119]
[1749014219527,9.131e-05,105450.0,105440.0,1.63348119]
[1749014219989,9.131e-05,105450.0,105440.0,2.24640119]
[1749014220443,9.131e-05,105450.0,105440.0,1.4426743]
[1749014220663,0.01589131,105450.0,105440.0,1.8356343]
[1749014220888,0.01589131,105450.0,105440.0,1.8355943]
[1749014221120,0.4276182,105450.0,105440.0,1.1972743]
[1749014221641,0.4276182,105450.0,105440.0,1.4955543]
[1749014221888,0.4276182,105450.0,105440.0,1.8355543]
[1749014222121,0.4276182,105450.0,105440.0,1.4426743]
[1749014222367,0.4276182,105450.0,105440.0,1.73958]
[1749014223470,0.03249131,105450.0,105440.0,1.73962]
[1749014223685,0.4276182,105450.0,105440.0,1.73962]
[1749014225880,0.03249131,105450.0,105440.0,1.73962]
[1749014226097,0.4276182,105450.0,105440.0,1.73962]
[1749014226313,0.01589131,105450.0,105440.0,1.25312]
[1749014226518,0.03149131,105450.0,105440.0,1.25312]
[1749014227822,9.131e-05,105450.0,105440.0,1.50340119]
[1749014229166,9.131e-05,105450.0,105440.0,1.1082743]
[1749014229419,9.131e-05,105450.0,105440.0,0.8616743]
[1749014230082,9.131e-05,105450.0,105440.0,1.3800743]
[1749014230295,9.131e-05,105450.0,105440.0,1.1072343]
[1749014230505,9.131e-05,105450.0,105440.0,1.0913343]
[1749014232474,9.131e-05,105450.0,105440.0,0.8457743]
[1749014233336,9.131e-05,105450.0,105440.0,1.25690119]
[1749014234629,9.131e-05,105450.0,105440.0,1.46330119]
[1749014237909,9.131e-05,105450.0,105440.0,1.0681743]
[1749014238125,9.131e-05,105450.0,105440.0,1.94980119]
[1749014239918,9.131e-05,105450.0,105440.0,2.56180119]
[1749014242463,9.131e-05,105450.0,105440.0,1.2957143]
[1749014242681,9.131e-05,105450.0,105440.0,1.98900119]
[1749014244468,9.131e-05,105450.0,105440.0,1.74344119]
[1749014246314,9.131e-05,105450.0,105440.0,1.64984119]
[1749014246730,0.01539131,105450.0,105440.0,0.8823543]
[1749014246946,0.01539131,105450.0,105440.0,1.2223543]
[1749014247169,0.01539131,105450.0,105440.0,0.5843543]
[1749014247384,0.01539131,105450.0,105440.0,0.8823543]
[1749014247610,0.01539131,105450.0,105440.0,1.2223543]
[1749014248651,0.01539131,105450.0,105440.0,0.9243543]
[1749014248869,0.03069131,105450.0,105440.0,1.1267]
[1749014249961,0.03069131,105450.0,105440.0,1.2522]
[1749014251853,0.01539131,105450.0,105440.0,1.2522]
[1749014254202,0.01539131,105450.0,105440.0,0.8604]
[1749014254406,0.03129131,105450.0,105440.0,1.25168]
[1749014256614,0.03129131,105450.0,105440.0,0.91144]
[1749014256838,0.01539131,105450.0,105440.0,0.91144]
[1749014257931,0.01539131,105450.0,105440.0,0.91132]
[1749014259469,0.01539131,105450.0,105440.0,0.5204]
[1749014259698,0.01539131,105450.0,105440.0,1.2506]
[1749014260139,0.01539131,105450.0,105440.0,0.8604]
[1749014260386,0.01539131,105450.0,105440.0,1.2506]
[1749014260876,0.01539131,105450.0,105440.0,0.8604]
[1749014261088,0.01539131,105450.0,105440.0,1.2506]
[1749014261309,9.131e-05,105450.0,105440.0,1.77388119]
[1749014261774,9.131e-05,105450.0,105440.0,2.26038119]
[1749014264887,9.131e-05,105450.0,105440.0,1.8652543]
[1749014265127,9.131e-05,105450.0,105440.0,2.26038119]
[1749014265356,9.131e-05,105450.0,105440.0,1.98754119]
[1749014267355,9.131e-05,105450.0,105440.0,1.64894119]
[1749014267618,9.131e-05,105450.0,105440.0,1.64856214]
[1749014267819,9.131e-05,105450.0,105440.0,1.25343525]
[1749014268056,9.131e-05,105450.0,105440.0,1.64856214]
[1749014270025,9.131e-05,105450.0,105440.0,2.26000214]
[1749014271505,9.131e-05,105450.0,105440.0,1.98644214]
[1749014273004,9.131e-05,105450.0,105440.0,1.44444214]
[1749014273208,9.131e-05,105450.0,105440.0,1.74072214]
[1749014273419,9.131e-05,105450.0,105440.0,1.64768214]
[1749014273625,9.131e-05,105450.0,105440.0,1.67798605]
[1749014275501,9.131e-05,105450.0,105440.0,1.38170605]
[1749014275744,9.131e-05,105450.0,105440.0,1.28261916]
[1749014275942,9.131e-05,105450.0,105440.0,1.67774605]
[1749014276806,9.131e-05,105450.0,105440.0,1.28261916]
[1749014277039,9.131e-05,105450.0,105440.0,1.67774605]
[1749014277246,9.131e-05,105450.0,105440.0,1.64744214]
[1749014277673,9.131e-05,105450.0,105440.0,1.25231525]
[1749014277882,9.131e-05,105450.0,105440.0,1.64744214]
[1749014278338,9.131e-05,105450.0,105440.0,1.35140214]
[1749014278554,9.131e-05,105450.0,105440.0,1.25251525]
[1749014278982,0.01649131,105450.0,105440.0,0.58397525]
[1749014279192,0.01649131,105450.0,105440.0,0.88037525]
[1749014279415,0.01649131,105450.0,105440.0,1.22037525]
[1749014279864,0.03199131,105450.0,105440.0,0.58397525]
[1749014280081,0.03199131,105450.0,105440.0,1.49197525]
[1749014280293,0.03199131,105450.0,105440.0,1.83197525]
[1749014280781,0.03199131,105450.0,105440.0,1.53529525]
[1749014281012,0.03199131,105450.0,105440.0,1.83217525]
[1749014281496,0.03199131,105450.0,105440.0,1.53529525]
[1749014281497,0.03299131,105450.0,105440.0,1.53529525]
[1749014281726,0.03299131,105450.0,105440.0,1.83225525]
[1749014285481,0.03299131,105450.0,105440.0,0.95579525]
[1749014285710,0.01649131,105450.0,105440.0,1.34583525]
[1749014289414,0.4270182,105450.0,105440.0,0.85994095]
[1749014289653,1.25799939,105450.0,105440.0,0.51994095]
[1749014289901,1.27254024,105450.0,105440.0,0.90950095]
[1749014290127,1.43057013,105450.0,105440.0,0.51994095]
[1749014290351,1.43057013,105450.0,105440.0,0.61274095]
[1749014290591,1.43057013,105450.0,105440.0,0.90946095]
[1749014290800,1.36505146,105450.0,105440.0,0.90946095]
[1749014291012,1.36505146,105450.0,105440.0,0.90938095]
[1749014291232,1.37468836,105450.0,105440.0,0.61274095]
[1749014291469,1.37468836,105450.0,105440.0,0.90938095]
[1749014291470,1.44119064,105450.0,105440.0,0.90938095]
[1749014291679,1.40011387,105450.0,105440.0,0.90938095]
[1749014291904,1.40011383,105450.0,105440.0,0.90884]
[1749014292114,1.37868836,105450.0,105440.0,0.90884]
[1749014292322,1.42460623,105450.0,105440.0,0.61212]
[1749014292536,1.4038423,105450.0,105440.0,0.9088]
[1749014292975,1.4088423,105450.0,105440.0,0.9088]
[1749014293414,1.41550376,105450.0,105440.0,0.9088]
[1749014293873,1.42660619,105450.0,105440.0,0.9088]
[1749014294096,1.4088423,105450.0,105440.0,0.9088]
[1749014294312,1.3770423,105450.0,105440.0,0.0928]
[1749014294518,1.39480627,105450.0,105440.0,0.0928]
[1749014294730,1.3770423,105450.0,105440.0,0.0928]
[1749014295010,1.4091423,105450.0,105440.0,0.0928]
[1749014295233,0.0159,105420.0,105410.0,0.07594096]
[1749014295470,0.44479164,105420.0,105410.0,0.16874096]
[1749014295700,0.42702689,105420.0,105410.0,0.46546096]
[1749014296345,0.44479148,105420.0,105410.0,0.48027967]
[1749014296566,0.44479166,105420.0,105410.0,0.48027967]
[1749014296783,0.42702689,105420.0,105410.0,0.48027967]
[1749014297001,0.0319,105420.0,105410.0,0.48027967]
[1749014297213,0.44479209,105420.0,105410.0,0.48027967]
[1749014297422,0.42702689,105420.0,105410.0,0.48027967]
[1749014297628,0.41102689,105420.0,105410.0,0.48019967]
[1749014297841,0.42879182,105420.0,105410.0,0.48019967]
[1749014298062,0.42879183,105420.0,105410.0,0.48019967]
[1749014298276,0.42712689,105430.0,105410.0,0.48019967]
[1749014298495,0.52298119,105430.0,105410.0,0.48019967]
[1749014298734,0.54074661,105430.0,105410.0,0.48019967]
[1749014298955,0.54074672,105430.0,105410.0,0.48019967]
[1749014299180,0.52298119,105430.0,105410.0,0.48019967]
[1749014299392,0.5948214,105430.0,105410.0,0.40425871]
[1749014299602,0.52298119,105430.0,105410.0,0.40425871]
[1749014299814,0.54074673,105430.0,105410.0,0.40425871]
[1749014300031,0.52298119,105430.0,105420.0,0.51856]
[1749014300469,0.1278543,105430.0,105420.0,0.51856]
[1749014300684,0.52298119,105430.0,105420.0,0.51856]
[1749014301110,0.54074748,105430.0,105420.0,0.51856]
[1749014301369,0.52298119,105430.0,105420.0,0.51856]
[1749014301576,0.52498119,105430.0,105420.0,0.51856]
[1749014302005,0.57747931,105430.0,105420.0,0.51856]
[1749014303097,0.52498119,105430.0,105420.0,0.51856]
[1749014303726,0.54274824,105430.0,105420.0,0.51856]
[1749014303958,0.5427487,105430.0,105420.0,0.51856]
[1749014304170,0.52498119,105430.0,105420.0,0.51856]